bitfinex-derivatives/quotes_ETHF0:USTF0_20260207
["timestamp","ask_amount","ask_price","bid_price","bid_amount"]
[1770499508233,11.24630482,2102.9,2102.1,10.9107004]
[1770499508835,2.84000738,2103.0,2102.3,10.9107004]
[1770499509042,14.0863122,2103.3,2102.4,11.1486704]
[1770499509435,11.24630482,2103.2,2102.4,11.1486704]
[1770499513943,10.67336407,2103.1,2102.4,11.1486704]
[1770499514639,10.67336407,2103.1,2102.4,10.9107004]
[1770499514837,10.67336407,2103.0,2102.2,2.8295796]
[1770499515032,10.67336407,2103.0,2102.2,11.20112863]
[1770499516234,10.67336407,2103.0,2102.2,14.03070823]
[1770499516542,10.67336407,2102.9,2102.3,11.20112863]
[1770499516742,13.51337145,2103.1,2102.3,11.20112863]
[1770499517046,10.67336407,2103.0,2102.4,11.20112863]
[1770499517446,13.51337145,2103.2,2102.4,11.20112863]
[1770499517840,10.67336407,2103.1,2102.4,11.20112863]
[1770499518042,10.67336407,2103.0,2102.4,11.20112863]
[1770499528152,10.67336407,2103.0,2102.3,14.03070823]
[1770499528351,10.67336407,2103.0,2102.4,11.20112863]
[1770499531457,10.67336407,2102.9,2102.4,11.20112863]
[1770499531654,10.67336407,2102.9,2102.2,14.26870823]
[1770499531961,10.67336407,2102.9,2102.3,11.20112863]
[1770499533355,10.67336407,2102.8,2102.3,11.20112863]
[1770499533856,2.84000738,2102.9,2102.3,11.20112863]
[1770499534057,2.84000738,2102.9,2102.3,14.03070823]
[1770499534257,13.51337145,2102.9,2102.4,11.20112863]
[1770499534762,2.84000738,2102.9,2102.4,11.20112863]
[1770499534959,13.51337145,2102.9,2102.4,11.20112863]
[1770499537261,10.67336407,2102.9,2102.4,11.20112863]
[1770499538263,13.51337145,2102.9,2102.4,11.20112863]
[1770499538763,10.67336407,2102.9,2102.4,11.20112863]
[1770499539864,7.13078392,2104.7,2103.4,1.09419]
[1770499540066,11.57604554,2107.5,2105.0,1.09337]
[1770499540262,10.92957193,2107.3,2107.2,5.66416537]
[1770499540463,5.92231169,2107.3,2106.9,7.08020671]
[1770499540660,0.23728,2108.6,2106.5,14.64724805]
[1770499540661,11.54817197,2107.1,2106.5,14.64724805]
[1770499540862,11.55223217,2107.1,2106.6,8.49624805]
[1770499541159,3.47851281,2106.9,2106.2,10.38430317]
[1770499541468,2.70652928,2106.9,2106.8,4.19365446]
[1770499541669,11.54817197,2106.7,2106.0,11.03067021]
[1770499541869,11.54817197,2106.7,2106.1,10.38430317]
[1770499542067,65.20196565,2106.6,2106.2,11.03067021]
[1770499542367,76.75013762,2106.6,2106.2,11.03498735]
[1770499542563,76.75013762,2106.6,2106.2,0.00431714]
[1770499542762,11.54817197,2106.5,2106.2,0.00431714]
[1770499543268,65.20196565,2106.4,2106.2,0.00431714]
[1770499543664,65.20196565,2106.4,2106.0,11.03067021]
[1770499544562,76.75013762,2106.4,2106.0,11.03067021]
[1770499544768,76.75013762,2106.4,2106.0,11.03527811]
[1770499545167,65.20196565,2106.4,2106.0,10.59082281]
[1770499546269,64.58435858,2106.4,2106.0,10.59082281]
[1770499547169,11.54817197,2106.3,2106.0,0.0046079]
[1770499547362,11.54817197,2106.3,2105.6,11.03067021]
[1770499547564,76.13253055,2106.2,2105.6,11.03067021]
[1770499547871,11.54817197,2106.4,2105.6,11.03067021]
[1770499548375,64.58435858,2106.3,2105.6,11.03444025]
[1770499548770,11.54817197,2106.2,2105.6,11.03444025]
[1770499549769,64.58435858,2106.3,2105.6,11.03444025]
[1770499549976,11.54817197,2106.2,2105.6,11.03444025]
[1770499550277,11.54817197,2106.0,2104.9,0.3153173]
[1770499550572,11.54817197,2106.0,2104.8,11.03067021]
[1770499550876,11.54817197,2106.0,2104.5,10.38430317]
[1770499550877,11.54817197,2105.8,2104.6,11.03067021]
[1770499551070,11.54817197,2105.8,2104.6,11.03574322]
[1770499551873,11.54817197,2105.6,2104.6,11.03574322]
[1770499552072,11.55421412,2105.6,2104.6,11.03574322]
[1770499552378,11.54817197,2105.4,2104.6,17.96126981]
[1770499552679,11.54817197,2105.4,2104.7,7.13110929]
[1770499552871,11.54817197,2105.4,2104.8,7.13110929]
[1770499553074,11.54817197,2105.4,2104.9,7.13110929]
[1770499553272,11.54817197,2105.4,2105.0,7.13110929]
[1770499553579,11.54817197,2105.4,2105.1,7.13110929]
[1770499553780,11.54817197,2105.4,2105.2,7.13110929]
[1770499554078,11.54817197,2105.4,2104.7,6.92552659]
[1770499554272,11.54817197,2105.4,2104.8,7.13072521]
[1770499554472,11.54817197,2105.4,2104.9,7.13072521]
[1770499554672,11.54817197,2105.2,2105.0,7.13072521]
[1770499554874,5.60570013,2105.2,2105.1,7.13072521]
[1770499555074,8.45077066,2105.0,2104.6,0.00507301]
[1770499555269,4.57601147,2105.0,2104.7,7.13140254]
[1770499555578,4.57601147,2105.0,2104.8,2.55539107]
[1770499555781,4.57601147,2105.0,2104.6,0.00507301]
[1770499556384,64.58435858,2104.9,2104.6,0.00507301]
[1770499556581,64.12080794,2104.9,2104.6,0.00507301]
[1770499557183,64.02255321,2104.9,2104.6,11.58111856]
[1770499558384,56.89104901,2104.9,2104.6,11.58111856]
[1770499560177,56.89104901,2104.9,2104.7,11.52303434]
[1770499560373,56.89104901,2104.9,2104.8,5.56629034]
[1770499560577,48.57145647,2104.9,2104.7,18.44856093]
[1770499561178,48.67747887,2104.9,2104.8,5.35775473]
[1770499561382,48.57145647,2104.9,2104.6,0.00507301]
[1770499561883,0.23763,2105.5,2104.6,0.00507301]
[1770499562076,48.57145647,2105.4,2104.6,0.00507301]
[1770499562877,0.23764,2105.4,2104.2,18.50157214]
[1770499563083,48.80404346,2105.3,2104.1,18.50157214]
[1770499563284,0.23766,2105.3,2104.1,18.50157214]
[1770499563589,48.56638346,2105.2,2104.1,18.50157214]
[1770499564089,48.56638346,2105.2,2104.1,18.50698842]
[1770499564288,48.56638346,2105.2,2104.2,6.92552659]
[1770499565691,0.2377,2104.9,2104.1,6.93094287]
[1770499565889,0.2377,2104.9,2104.1,0.00541628]
[1770499566806,48.56638346,2104.8,2104.1,0.00541628]
[1770499567606,0.10025888,2104.7,2104.2,6.60210061]
[1770499567804,48.56638346,2104.8,2104.1,0.00541628]
[1770499569005,0.2377,2104.9,2104.1,0.00541628]
[1770499569204,48.56638346,2104.8,2104.1,0.00541628]
[1770499569606,0.30818638,2104.7,2104.1,0.00541628]
[1770499571506,48.56638346,2104.6,2104.1,0.00541628]
[1770499571703,45.22001888,2104.6,2104.1,11.57317068]
[1770499571911,11.47021685,2105.4,2104.6,11.5043683]
[1770499572105,0.74799048,2105.1,2104.5,11.5043683]
[1770499572609,25.13799137,2105.0,2104.5,11.5043683]
[1770499572815,0.74799048,2105.0,2104.5,11.5043683]
[1770499573002,25.13798305,2104.9,2104.5,11.5043683]
[1770499573203,0.74798216,2104.9,2104.5,11.5043683]
[1770499573403,25.13798305,2104.9,2104.5,11.5043683]
[1770499573611,0.62265917,2104.8,2104.5,11.5043683]
[1770499573905,0.62265917,2105.4,2104.5,11.5043683]
[1770499574109,0.62265917,2105.0,2104.5,11.5043683]
[1770499574702,24.39000089,2104.9,2104.5,11.5043683]
[1770499575301,0.62343415,2105.2,2104.6,11.271834]
[1770499575502,24.39000089,2105.1,2104.6,11.271834]
[1770499575712,24.39000089,2105.1,2104.7,11.30210801]
[1770499576103,24.95288702,2105.1,2104.7,11.30210801]
[1770499576301,24.95288702,2105.1,2104.8,11.30210801]
[1770499577807,0.00604215,2105.6,2104.9,11.27590196]
[1770499578009,24.44697315,2105.4,2105.0,11.27590196]
[1770499578405,24.44697315,2105.4,2105.0,18.20142855]
[1770499578607,0.61529823,2105.3,2105.0,11.27590196]
[1770499578804,23.83167492,2105.4,2105.1,11.58355108]
[1770499579009,23.83167492,2105.4,2105.0,6.92552659]
[1770499579209,24.50529672,2105.4,2105.0,18.50907767]
[1770499579515,24.52247656,2105.4,2105.0,18.50907767]
[1770499579713,24.52247656,2105.4,2105.1,17.49651217]
[1770499579906,0.01717984,2105.3,2105.2,3.06337751]
[1770499580110,0.01717984,2105.3,2105.2,2.57157204]
[1770499580310,0.01717984,2105.3,2105.2,2.07157204]
[1770499580506,24.50529672,2105.4,2105.2,2.07157204]
[1770499580711,21.76010288,2105.3,2105.0,11.58355108]
[1770499581319,21.76010288,2105.3,2105.1,5.6562008]
[1770499581511,16.30302244,2105.3,2105.0,17.23975188]
[1770499582016,10.3605485,2105.3,2105.0,17.23975188]
[1770499582216,10.3605485,2105.3,2105.0,11.58355108]
[1770499585219,9.58802958,2105.3,2105.0,11.58355108]
[1770499586020,9.58802958,2105.3,2104.8,17.23975188]
[1770499586520,9.58802958,2105.3,2104.9,11.58355108]
[1770499589326,9.58802958,2105.3,2105.0,11.58355108]
[1770499591624,5.92949511,2105.3,2105.1,11.58355108]
[1770499591824,0.6736218,2105.4,2105.1,11.58355108]
[1770499592017,5.92949511,2105.3,2105.1,11.58355108]
[1770499592617,5.92949511,2105.3,2105.2,16.93735141]
[1770499593022,5.92949511,2105.3,2105.2,16.43885141]
[1770499594223,5.88943729,2105.9,2105.3,10.69497515]
[1770499595125,5.89542864,2105.9,2105.3,10.69497515]
[1770499595520,6.5968544,2105.9,2105.3,10.69497515]
[1770499598826,6.5968544,2105.9,2105.1,10.91345114]
[1770499599530,6.8344444,2105.9,2104.8,16.56965194]
[1770499599720,5.76022297,2105.7,2104.8,16.56965194]
[1770499599925,5.76022297,2105.7,2104.8,10.91345114]
[1770499600430,5.76022297,2105.5,2104.8,10.91345114]
[1770499600825,5.76022297,2105.5,2104.6,16.56965194]
[1770499601024,5.76022297,2105.5,2104.6,10.91345114]
[1770499601423,5.76022297,2105.5,2104.7,2.82697964]
[1770499601631,5.76022297,2105.5,2104.6,13.74043078]
[1770499601832,5.76022297,2105.5,2104.7,10.91345114]
[1770499602334,5.76022297,2105.5,2104.7,13.74043078]
[1770499604432,5.76022297,2105.5,2104.6,2.82697964]
[1770499604631,5.76022297,2105.5,2104.5,15.15395175]
[1770499604632,5.76022297,2105.5,2104.5,13.74043078]
[1770499605034,5.76022297,2105.5,2104.6,10.91345114]
[1770499608636,5.99786297,2105.5,2104.6,10.91345114]
[1770499609330,0.23764,2105.5,2104.6,10.91345114]
[1770499609632,6.01777379,2105.5,2104.7,10.91345114]
[1770499613638,5.80078847,2105.8,2104.9,10.91345114]
[1770499615439,5.80078847,2105.8,2105.0,10.91345114]
[1770499615638,0.00599135,2105.9,2105.0,10.91345114]
[1770499615838,5.79818971,2105.9,2105.0,10.91345114]
[1770499616035,6.03577971,2105.9,2104.9,10.91345114]
[1770499619039,5.71509825,2105.7,2104.9,10.91345114]
[1770499619441,5.95270825,2105.7,2104.9,10.91345114]
[1770499619639,5.95270825,2105.7,2104.8,10.91345114]
[1770499625247,0.23761,2105.7,2104.8,10.91345114]
[1770499625749,5.77468259,2105.7,2104.8,10.91345114]
[1770499627746,5.47399789,2105.5,2104.8,10.91345114]
[1770499627942,0.23764,2105.4,2104.8,10.41383114]
[1770499628141,5.97361789,2105.3,2104.6,10.84767806]
[1770499629649,6.21126789,2105.3,2104.6,10.84767806]
[1770499634350,6.21126789,2105.3,2104.4,11.35129911]
[1770499635853,6.95447148,2105.8,2104.8,11.35129911]
[1770499643352,0.2376,2105.8,2104.8,14.1830456]
[1770499643658,0.2376,2105.8,2105.0,11.35129911]
[1770499645450,6.86127521,2105.8,2105.0,11.35129911]
[1770499647261,6.85942276,2105.8,2105.0,11.35129911]
[1770499652560,0.00599135,2105.9,2105.0,11.35129911]
[1770499652864,6.76679281,2106.9,2105.7,14.1830456]
[1770499653063,6.76679281,2106.9,2105.9,11.35129911]
[1770499653762,6.77278683,2106.9,2105.9,11.35589399]
[1770499659164,6.73737402,2106.9,2105.9,11.35589399]
[1770499659364,0.00599402,2106.9,2105.9,11.35589399]
[1770499662464,0.00599402,2106.9,2105.9,14.18764048]
[1770499666562,6.98331015,2107.5,2106.2,10.81356063]
[1770499667762,6.98936611,2107.5,2106.2,10.81356063]
[1770499668667,6.98936611,2107.5,2106.2,11.12487761]
[1770499669670,6.98936611,2107.5,2106.2,10.81356063]
[1770499670860,6.8841847,2107.1,2106.2,10.81356063]
[1770499671465,7.1216347,2107.1,2106.1,10.81356063]
[1770499671964,0.00605596,2107.5,2106.1,10.81356063]
[1770499671965,6.83688068,2106.9,2106.1,10.81356063]
[1770499672576,7.07438068,2106.7,2105.6,10.81356063]
[1770499673268,6.83688068,2106.7,2105.6,10.81356063]
[1770499673573,6.83688068,2106.7,2105.6,10.81785414]
[1770499673966,10.29267722,2107.2,2105.6,10.81785414]
[1770499674167,10.29267722,2107.2,2105.7,10.81356063]
[1770499675672,10.53011722,2107.2,2105.7,10.81356063]
[1770499676475,10.712183,2106.8,2105.7,10.81356063]
[1770499678774,10.949663,2106.9,2105.7,10.81356063]
[1770499678975,10.949663,2106.9,2105.8,10.81356063]
[1770499680374,10.949663,2106.9,2105.9,10.81356063]
[1770499682275,10.949663,2106.9,2106.0,10.81356063]
[1770499686072,11.03438133,2106.7,2105.7,13.33554278]
[1770499686282,11.03438133,2106.7,2105.8,10.50379629]
[1770499686872,0.23751,2106.6,2105.8,10.50379629]
[1770499687072,11.03438133,2106.5,2105.8,10.50379629]
[1770499688577,10.97166173,2106.7,2105.8,10.50379629]
[1770499688775,10.97166173,2107.1,2106.0,10.50379629]
[1770499689384,10.97166173,2107.1,2106.0,11.46066443]
[1770499690181,11.92852987,2107.1,2106.0,11.46066443]
[1770499692686,11.92852987,2107.1,2106.1,10.61859251]
[1770499694281,10.79690553,2106.8,2105.9,10.61859251]
[1770499700595,11.03439553,2106.8,2105.9,10.61859251]
[1770499705793,10.71908354,2106.6,2105.8,13.43991808]
[1770499706097,10.71908354,2106.6,2105.8,10.61859251]
[1770499712408,11.02288581,2106.8,2105.8,10.61859251]
[1770499725425,10.66029311,2106.6,2105.8,10.61859251]
[1770499727219,10.66029311,2106.6,2105.6,11.12885214]
[1770499727819,10.95066255,2106.4,2105.6,11.12885214]
[1770499729121,0.23753,2106.4,2105.6,11.12885214]
[1770499729319,17.83232488,2106.6,2105.6,11.12885214]
[1770499729514,10.71313255,2106.5,2105.6,11.12885214]
[1770499732826,7.11919233,2106.8,2105.7,11.12455863]
[1770499733026,10.76547763,2107.0,2106.0,11.12455863]
[1770499736732,10.72228748,2107.2,2106.2,11.12455863]
[1770499737033,10.72228748,2107.2,2106.3,11.12455863]
[1770499737935,10.71686063,2107.4,2106.3,11.12455863]
[1770499738433,14.04057099,2108.4,2106.7,2.82132557]
[1770499738635,38.65132877,2110.9,2106.4,10.46630404]
[1770499738636,11.56367435,2109.2,2108.2,2.82132557]
[1770499738829,11.56367435,2109.2,2107.9,5.6562008]
[1770499738830,11.33226249,2108.6,2107.9,3.28414929]
[1770499739026,11.33226249,2108.4,2107.9,3.28414929]
[1770499739232,11.33226249,2108.4,2107.9,0.46282372]
[1770499739533,0.00485526,2108.4,2107.9,0.46640362]
[1770499739732,18.62630812,2108.5,2107.9,0.46640362]
[1770499739929,18.62630812,2108.5,2108.0,0.84323033]
[1770499740637,29.7683673,2108.5,2108.0,0.84323033]
[1770499740936,29.77273238,2108.5,2108.0,0.84323033]
[1770499741636,0.00436508,2108.5,2108.0,0.84323033]
[1770499742339,0.00436508,2108.5,2107.7,2.66922875]
[1770499742340,10.98247729,2108.4,2107.7,2.66922875]
[1770499742536,10.98247729,2108.4,2107.4,2.66922875]
[1770499742837,10.98247729,2108.2,2107.4,2.66922875]
[1770499743341,10.98247729,2108.2,2107.4,2.67418791]
[1770499744936,10.98247729,2108.0,2107.4,2.67418791]
[1770499745639,18.62630812,2108.0,2107.4,2.67418791]
[1770499745843,29.78437004,2108.0,2107.4,2.67418791]
[1770499748846,11.15806192,2108.0,2107.4,2.67418791]
[1770499749046,29.32141881,2108.0,2107.4,2.67418791]
[1770499750242,18.16335689,2108.0,2107.4,2.67418791]
[1770499750643,11.15806192,2108.2,2107.4,2.67418791]
[1770499750845,11.15806192,2108.2,2107.5,1.77970232]
[1770499751141,18.16335689,2108.2,2107.5,1.77970232]
[1770499751442,11.15806192,2108.1,2107.5,1.77970232]
[1770499751841,12.6787132,2110.9,2107.4,0.00495916]
[1770499751842,11.5554496,2109.8,2108.0,5.6562008]
[1770499752144,11.5554496,2109.3,2107.9,2.78062978]
[1770499752341,11.7925296,2110.4,2108.3,2.78062978]
[1770499752541,11.7925496,2110.2,2108.7,2.78062978]
[1770499752745,11.7925496,2110.2,2108.7,5.81049198]
[1770499752946,7.17936028,2110.1,2108.7,8.59112176]
[1770499753142,11.5554496,2110.0,2108.8,5.7964772]
[1770499753446,11.5554496,2110.0,2108.9,5.7871665]
[1770499753640,11.5554496,2110.0,2109.0,0.02061454]
[1770499754236,11.54514233,2109.8,2109.0,0.02061454]
[1770499754445,11.54514233,2109.8,2108.9,0.00512975]
[1770499754645,11.54514233,2109.6,2108.9,0.00512975]
[1770499755044,11.54514233,2109.4,2108.9,0.00512975]
[1770499755544,11.54514233,2109.4,2108.9,0.02574429]
[1770499755750,11.3588298,2110.0,2108.9,0.02574429]
[1770499756049,11.3588298,2109.9,2108.9,0.02574429]
[1770499756547,11.3588298,2109.7,2108.9,0.02574429]
[1770499756946,11.3588298,2109.7,2108.3,4.17094467]
[1770499756947,11.3588298,2109.5,2108.7,0.44087064]
[1770499757854,11.3588298,2109.3,2108.7,0.44087064]
[1770499758148,11.3588298,2109.3,2108.7,0.44661259]
[1770499758749,18.53819008,2109.3,2108.7,0.44661259]
[1770499760639,7.17936028,2109.3,2108.7,0.44661259]
[1770499761244,18.55814484,2109.3,2108.7,0.44661259]
[1770499761451,11.37878456,2109.2,2108.7,0.00574195]
[1770499761649,10.91612974,2109.2,2108.7,0.00574195]
[1770499761851,10.91612974,2109.2,2108.7,0.79898853]
[1770499762044,0.00528119,2110.2,2108.7,0.00574195]
[1770499762045,11.3588298,2109.0,2108.7,0.00574195]
[1770499762951,18.53819008,2109.0,2108.7,0.00574195]
[1770499763148,11.3588298,2108.9,2108.6,2.78062978]
[1770499763545,7.17936028,2108.8,2108.3,5.6562008]
[1770499763748,11.3588298,2108.7,2108.4,5.86211083]
[1770499763952,11.3588298,2108.7,2108.3,0.79678795]
[1770499764251,18.53819008,2108.6,2108.3,0.00406286]
[1770499764451,18.53819008,2108.6,2108.2,0.79678795]
[1770499764644,18.53819008,2108.6,2108.3,5.74777915]
[1770499764845,18.53819008,2108.6,2108.0,6.45298875]
[1770499765046,11.3588298,2108.5,2108.1,0.79678795]
[1770499765346,10.58755048,2108.5,2108.1,6.45652901]
[1770499766651,10.58755048,2108.5,2108.1,0.80032821]
[1770499767253,10.58755048,2108.5,2108.1,5.65974106]
[1770499767451,7.17936028,2108.4,2108.1,5.65974106]
[1770499767756,11.3588298,2108.3,2108.1,5.65974106]
[1770499767950,5.42549759,2108.3,2108.1,0.00354026]
[1770499769155,2.67536641,2108.2,2108.1,0.00354026]
[1770499769758,5.42549759,2108.3,2108.1,0.00354026]
[1770499769958,8.100864,2108.3,2108.1,0.00354026]
[1770499770453,2.67536641,2108.3,2108.0,7.53927811]
[1770499770855,14.03419621,2108.3,2107.8,7.53927811]
[1770499771455,14.03419621,2108.3,2107.8,7.54460638]
[1770499772556,14.03419621,2108.3,2107.8,0.00532827]
[1770499775552,14.03419621,2108.3,2107.5,7.25063226]
[1770499775758,14.03419621,2108.3,2107.4,7.08211196]
[1770499776561,14.03419621,2108.3,2107.4,7.0864126]
[1770499776757,14.03419621,2108.3,2107.5,5.49619525]
[1770499776963,14.03419621,2108.3,2107.6,5.49619525]
[1770499777165,14.03419621,2108.3,2107.7,5.49619525]
[1770499777363,14.03419621,2108.3,2107.4,0.00430064]
[1770499777564,14.03419621,2108.3,2107.5,5.49723646]
[1770499777863,14.03419621,2108.3,2107.6,5.49723646]
[1770499778063,14.03419621,2108.3,2107.7,5.49723646]
[1770499778263,14.03419621,2108.3,2107.4,7.28470114]
[1770499778464,14.03419621,2108.3,2107.5,12.77976227]
[1770499778762,14.03419621,2108.3,2107.6,5.49936177]
[1770499778965,11.3588298,2108.3,2107.5,7.2804005]
[1770499779162,11.3588298,2108.3,2107.6,5.49771922]
[1770499779363,11.3588298,2108.3,2107.5,7.2804005]
[1770499779559,11.3588298,2108.3,2107.6,5.49739445]
[1770499779865,11.3588298,2108.3,2107.5,7.2804005]
[1770499780059,10.72622459,2108.1,2107.5,7.2804005]
[1770499780259,10.72622459,2108.5,2107.7,7.29796029]
[1770499780460,10.72622459,2108.3,2107.9,7.29796029]
[1770499780958,13.401591,2108.3,2107.9,7.29796029]
[1770499783164,10.72622459,2109.1,2107.9,7.29796029]
[1770499783368,4.756,2109.9,2108.2,10.96703277]
[1770499783369,10.72622459,2109.9,2108.2,10.96703277]
[1770499783567,10.72622459,2109.9,2108.4,10.96703277]
[1770499783768,10.72622459,2109.9,2108.6,10.96703277]
[1770499783971,10.72622459,2109.9,2108.3,6.92552659]
[1770499783972,10.72622459,2109.9,2108.8,10.96703277]
[1770499784269,10.73025968,2109.9,2108.9,5.49341219]
[1770499784466,10.73025968,2109.9,2108.9,0.00583093]
[1770499784870,10.73025968,2109.9,2108.9,10.9728637]
[1770499793270,10.73025968,2109.9,2108.9,0.00583093]
[1770499793670,10.96739968,2109.9,2108.9,0.00583093]
[1770499794476,10.72622459,2109.7,2108.9,0.00583093]
[1770499794877,10.72622459,2109.7,2108.4,4.19858601]
[1770499794878,10.72622459,2109.7,2108.5,16.40799799]
[1770499795170,10.72622459,2109.7,2108.4,4.19858601]
[1770499795376,10.72622459,2109.5,2108.3,15.16561878]
[1770499795576,10.72622459,2109.5,2108.4,5.44060994]
[1770499795778,10.72622459,2109.5,2108.4,0.0037943]
[1770499795968,10.72622459,2109.5,2108.4,10.97082707]
[1770499796174,10.72622459,2109.5,2108.1,9.79720414]
[1770499796374,10.72622459,2109.2,2108.2,5.43788531]
[1770499796575,1.47238337,2109.8,2107.6,15.16561878]
[1770499796576,10.96347459,2108.9,2107.6,15.16561878]
[1770499796781,0.23728,2108.6,2107.4,4.19858601]
[1770499797074,10.72622459,2108.3,2107.0,4.19858601]
[1770499797278,10.73207296,2108.3,2107.0,0.00466645]
[1770499797479,10.73207296,2108.3,2106.4,4.19858601]
[1770499797480,10.96358459,2107.9,2106.4,4.19858601]
[1770499797680,0.23737,2107.8,2106.3,4.19858601]
[1770499797882,10.72622459,2107.7,2106.2,4.19858601]
[1770499798179,10.72622459,2107.5,2106.1,4.19858601]
[1770499798370,10.96363459,2107.5,2106.1,5.32546499]
[1770499798575,10.96363459,2107.5,2106.1,0.00520533]
[1770499799172,10.96363459,2107.5,2106.1,10.9722381]
[1770499800280,10.96363459,2107.5,2106.1,0.00520533]
[1770499801776,10.96363459,2107.5,2106.1,10.61748872]
[1770499803587,10.96363459,2107.5,2106.1,0.00520533]
[1770499804276,10.72622459,2107.3,2106.1,0.00520533]
[1770499805087,10.72622459,2107.3,2106.1,10.64354526]
[1770499808984,10.72622459,2107.3,2106.1,0.00520533]
[1770499810085,10.96365459,2107.3,2106.1,0.00520533]
[1770499810285,10.74742324,2107.0,2105.8,0.0008]
[1770499811392,10.74742324,2107.0,2105.8,0.00686953]
[1770499812189,10.98488324,2107.0,2105.8,0.00686953]
[1770499813083,10.98488324,2107.0,2105.5,10.7248574]
[1770499813084,11.55122644,2106.5,2105.1,10.7248574]
[1770499813283,11.55122644,2106.5,2104.9,10.7248574]
[1770499814189,11.5570105,2106.5,2104.9,10.72930888]
[1770499814789,11.3194905,2106.5,2105.3,10.7248574]
[1770499815696,11.3194905,2106.5,2105.7,10.7248574]
[1770499815697,0.00578406,2106.5,2105.7,10.7248574]
[1770499815994,11.3194905,2106.5,2105.7,10.7248574]
[1770499816986,0.00578406,2106.5,2105.7,10.7248574]
[1770499818189,11.31370644,2106.8,2105.7,10.7248574]
[1770499819293,11.31970625,2106.8,2105.7,10.7248574]
[1770499819996,11.31370644,2107.3,2106.1,10.7248574]
[1770499820197,11.31370644,2107.3,2106.5,10.7248574]
[1770499820999,11.31875796,2107.3,2106.5,10.72881991]
[1770499821903,11.31370644,2107.5,2106.5,10.72881991]
[1770499822901,11.31857342,2107.5,2106.5,10.72881991]
[1770499823193,0.23733,2108.2,2106.5,10.72881991]
[1770499823194,11.31370644,2107.7,2106.5,10.72881991]
[1770499823392,11.31370644,2107.7,2106.7,10.7248574]
[1770499824095,11.31862223,2107.7,2106.7,10.7248574]
[1770499825295,11.31862223,2107.7,2106.9,10.7248574]
[1770499826296,11.31862223,2107.7,2107.0,10.7248574]
[1770499828601,11.31862223,2107.7,2106.8,13.51485298]
[1770499829404,11.31862223,2107.7,2106.8,10.7248574]
[1770499830204,11.31862223,2107.7,2106.6,10.7248574]
[1770499831509,11.55601223,2107.7,2106.5,0.00396251]
[1770499831709,11.31370644,2107.5,2106.0,13.51485298]
[1770499832005,11.31370644,2107.5,2106.5,10.7248574]
[1770499832505,11.31370644,2107.5,2106.3,2.78999558]
[1770499832707,11.31370644,2107.5,2106.3,13.51485298]
[1770499832908,11.31370644,2107.5,2106.3,13.5186478]
[1770499833109,11.31370644,2107.5,2106.3,10.72865222]
[1770499833297,11.31370644,2107.5,2106.3,13.5186478]
[1770499833611,11.31370644,2107.5,2106.5,10.7248574]
[1770499835504,11.31370644,2107.5,2106.3,2.7937904]
[1770499835709,10.96764692,2107.3,2106.3,0.00379482]
[1770499835909,10.96764692,2107.3,2106.3,10.41817912]
[1770499837108,10.96764692,2107.3,2106.3,0.00379482]
[1770499839613,10.96764692,2107.3,2106.3,10.41817912]
[1770499840512,10.96764692,2107.3,2106.3,0.00379482]
[1770499845408,0.23744,2107.2,2106.1,5.12779446]
[1770499845606,10.96764692,2107.1,2106.0,2.78999558]
[1770499846412,10.96764692,2107.1,2106.1,10.4143843]
[1770499847615,10.96764692,2107.1,2106.1,2.78999558]
[1770499847807,10.96764692,2107.1,2106.3,10.4143843]
[1770499851621,10.96764692,2107.1,2106.4,10.4143843]
[1770499851818,10.96764692,2107.1,2106.5,10.4143843]
[1770499852019,10.96764692,2107.6,2106.5,10.4143843]
[1770499852215,10.96764692,2107.6,2106.6,10.4143843]
[1770499853121,10.96764692,2107.6,2106.7,10.4143843]
[1770499854618,10.96764692,2107.6,2106.6,10.4143843]
[1770499855216,10.96764692,2107.6,2106.5,10.4143843]
[1770499857319,10.96764692,2107.6,2106.7,10.4143843]
[1770499857622,10.96764692,2107.6,2106.6,5.12310682]
[1770499857623,10.96764692,2107.6,2106.9,10.4143843]
[1770499858324,10.96764692,2107.6,2107.0,10.4143843]
[1770499860919,10.96764692,2107.6,2107.1,10.4143843]
[1770499861225,10.97256271,2107.7,2107.1,10.4143843]
[1770499863726,0.00491579,2107.7,2107.1,10.4143843]
[1770499864025,10.97256271,2107.7,2107.1,10.4143843]
[1770499866533,10.62334459,2108.4,2107.2,7.92169651]
[1770499866726,10.62092957,2108.4,2107.5,10.6164558]
[1770499867125,10.62334459,2109.0,2107.6,10.6164558]
[1770499867721,10.62734468,2109.0,2107.7,10.6164558]
[1770499867930,10.62734468,2109.0,2107.8,10.6164558]
[1770499870421,10.62734468,2109.0,2107.9,10.6164558]
[1770499872327,10.62734468,2109.0,2108.1,10.67308161]
[1770499873730,0.00400009,2109.0,2108.1,10.67308161]
[1770499875934,10.94166207,2109.0,2108.1,10.67308161]
[1770499876528,0.00400009,2109.0,2108.1,10.67308161]
[1770499878633,0.23719,2109.5,2108.1,10.67308161]
[1770499878634,10.93766198,2109.3,2108.3,10.67308161]
[1770499879726,10.94173788,2109.3,2108.3,10.67308161]
[1770499882830,11.17894788,2109.3,2108.3,10.67308161]
[1770499885637,10.94173788,2109.3,2108.3,10.67308161]
[1770499889634,0.0040759,2109.3,2108.3,10.67308161]
[1770499889835,0.0040759,2109.3,2108.6,10.67308161]
[1770499890340,10.94173788,2109.3,2108.6,10.67308161]
[1770499890734,0.0040759,2109.3,2108.6,10.67308161]
[1770499890928,0.0040759,2109.3,2108.5,2.81288637]
[1770499890929,10.93766198,2109.2,2108.5,2.81288637]
[1770499891128,10.93766198,2109.2,2108.3,13.48596798]
[1770499891339,10.93766198,2109.2,2108.4,10.67308161]
[1770499892342,10.93766198,2109.2,2108.5,10.67308161]
[1770499895041,10.93766198,2109.2,2108.4,13.48596798]
[1770499895241,10.93766198,2109.2,2108.5,5.05625732]
[1770499895535,10.93766198,2109.2,2108.5,14.34463937]
[1770499896335,10.93766198,2109.2,2108.6,7.88165823]
[1770499896544,10.93766198,2109.2,2108.5,2.81288637]
[1770499896739,10.93766198,2109.2,2108.4,14.34463937]
[1770499897039,10.93766198,2109.2,2108.4,2.81288637]
[1770499897434,10.93766198,2109.2,2108.5,5.07269959]
[1770499897636,10.93766198,2109.2,2108.4,2.81288637]
[1770499897831,10.93766198,2109.2,2108.4,14.34463937]
[1770499898032,10.93766198,2109.2,2108.6,11.531753]
[1770499898340,11.27647956,2109.7,2108.9,14.34463937]
[1770499898845,11.27647956,2109.7,2109.1,11.531753]
[1770499899240,11.28244025,2109.7,2109.1,11.53637415]
[1770499899744,11.28244025,2109.7,2109.3,11.531753]
[1770499899945,6.75218001,2109.7,2109.3,11.531753]
[1770499901145,6.75218001,2109.7,2109.1,14.34926052]
[1770499901446,6.75218001,2109.7,2109.3,11.531753]
[1770499901647,0.00596069,2109.7,2109.3,11.531753]
[1770499902142,11.27647956,2110.1,2109.3,11.531753]
[1770499902547,11.27647956,2110.1,2109.5,11.531753]
[1770499903041,11.27647956,2110.9,2109.5,11.531753]
[1770499903237,11.28049545,2110.9,2109.7,11.531753]
[1770499906445,0.00401589,2110.9,2109.9,11.531753]
[1770499906748,0.00401589,2110.9,2110.1,11.531753]